bitfinex/quotes_ETHUSD_20251125
["timestamp","ask_amount","ask_price","bid_price","bid_amount"]
[1764103867471,0.31810621,2941.6,2940.9,10.65655889]
[1764103867794,0.78410621,2941.6,2940.9,10.65655889]
[1764103867997,0.466,2941.6,2940.9,10.65655889]
[1764103868773,0.002,2941.8,2940.9,10.65655889]
[1764103868985,0.002,2941.8,2941.0,0.4778]
[1764103869190,0.002,2941.8,2941.0,1.20339411]
[1764103869371,0.002,2941.8,2941.1,0.1976]
[1764103869572,0.002,2941.8,2941.2,0.216]
[1764103869990,0.002,2941.8,2941.3,10.1995716]
[1764103871005,0.002,2941.8,2941.4,0.4778]
[1764103871301,0.002,2941.8,2941.7,0.4556]
[1764103871667,0.002,2941.8,2941.7,0.9334]
[1764103871898,0.002,2941.8,2941.7,4.3327949]
[1764103872572,0.002,2941.8,2941.7,3.8549949]
[1764103873081,0.002,2941.8,2941.7,4.3327949]
[1764103873710,0.002,2941.8,2941.7,9.81050384]
[1764103874007,0.002,2941.8,2941.7,10.21600784]
[1764103874192,0.002,2941.8,2941.7,4.58058901]
[1764103874905,0.002,2941.8,2941.7,5.05838901]
[1764103875070,0.002,2941.8,2941.7,4.58058901]
[1764103875502,0.002,2941.8,2941.7,5.05838901]
[1764103878781,0.002,2941.8,2941.7,4.12498901]
[1764103879217,0.002,2941.8,2941.7,4.58058901]
[1764103879527,0.002,2941.8,2941.7,5.05838901]
[1764103880021,0.002,2941.8,2941.7,4.58058901]
[1764103880788,0.1707,2941.8,2941.7,3.3993949]
[1764103881388,0.6329,2941.8,2941.7,3.3993949]
[1764103881645,0.6329,2941.8,2941.3,6.7997144]
[1764103881933,0.4706,2941.7,2941.3,6.7997144]
[1764103882488,0.4706,2941.7,2941.3,10.1995716]
[1764103882730,0.002,2941.8,2941.4,0.4886]
[1764103883026,0.002,2941.8,2941.3,10.1995716]
[1764103883265,0.468,2941.8,2941.3,10.1995716]
[1764103883833,0.002,2941.8,2941.3,10.1995716]
[1764103884000,0.002,2941.8,2941.3,10.6881716]
[1764103884332,0.002,2941.8,2941.3,10.1995716]
[1764103884510,0.468,2941.8,2941.3,10.1995716]
[1764103884927,0.468,2941.8,2941.3,6.7997144]
[1764103885089,0.0831,2941.4,2941.3,3.3998572]
[1764103886614,0.468,2941.8,2941.3,10.1995716]
[1764103889330,0.002,2941.8,2941.4,0.4886]
[1764103889527,0.002,2941.8,2941.7,0.4875]
[1764103890034,0.002,2941.8,2941.7,0.9761]
[1764103890192,0.002,2941.8,2941.7,0.4875]
[1764103890392,0.1707,2941.8,2941.3,10.1995716]
[1764103890616,0.6329,2941.8,2941.3,10.1995716]
[1764103891147,0.6329,2941.8,2941.3,3.3998572]
[1764103891148,0.0046,2941.4,2941.3,3.3998572]
[1764103891351,0.0046,2941.4,2941.2,3.39996031]
[1764103891352,0.0046,2941.4,2940.6,6.80133306]
[1764103891646,0.216,2941.6,2940.6,6.80133306]
[1764103891647,0.5446,2941.3,2940.6,6.80133306]
[1764103891854,0.0054,2940.7,2940.6,3.40066653]
[1764103892025,0.0054,2940.7,2940.2,3.40112917]
[1764103892231,0.466,2940.2,2940.1,0.001]
[1764103892568,0.78407606,2940.2,2940.1,0.001]
[1764103892932,0.466,2940.2,2940.1,0.001]
[1764103893133,0.0832,2940.5,2940.1,0.001]
[1764103893448,0.216,2940.8,2940.1,0.001]
[1764103894217,0.682,2940.8,2940.1,0.001]
[1764103894417,0.216,2941.0,2940.1,0.6804]
[1764103894861,0.466,2941.1,2940.1,0.6804]
[1764103895042,0.31743263,2941.0,2940.1,0.6804]
[1764103895221,0.466,2941.1,2940.2,6.80225834]
[1764103895417,0.91567313,2941.6,2940.2,6.80225834]
[1764103895614,0.002,2941.8,2941.5,0.4875]
[1764103895818,0.002,2941.8,2941.5,0.1908]
[1764103896854,0.002,2941.8,2941.7,0.4875]
[1764103897040,0.002,2941.8,2941.7,1.61859811]
[1764103897235,0.002,2941.8,2941.7,4.61248901]
[1764103897556,0.002,2941.8,2941.7,5.10108901]
[1764103899821,0.002,2941.8,2941.7,5.31708901]
[1764103901342,0.002,2942.4,2942.3,5.47770894]
[1764103901520,0.002,2942.4,2942.3,2.02539811]
[1764103901724,0.002,2942.4,2942.3,2.10849411]
[1764103901920,0.002,2942.4,2942.3,7.26611294]
[1764103902153,0.002,2942.4,2942.3,7.25439294]
[1764103902825,0.002,2942.4,2942.3,7.35439294]
[1764103903255,0.002,2942.4,2942.3,10.65309463]
[1764103903435,0.002,2942.4,2942.3,10.75309463]
[1764103904556,0.002,2942.4,2942.3,10.65309463]
[1764103904737,0.002,2942.4,2942.3,10.75309463]
[1764103905730,0.002,2942.4,2942.3,10.65309463]
[1764103905931,0.002,2942.4,2942.3,4.7908758]
[1764103906233,0.002,2942.4,2942.3,4.37480169]
[1764103906437,0.002,2942.4,2942.3,4.59180169]
[1764103906931,0.002,2942.4,2942.3,5.3173958]
[1764103908866,0.002,2942.4,2942.3,4.8287958]
[1764103909039,0.002,2942.4,2942.3,4.3412958]
[1764103916081,0.002,2942.4,2942.3,4.8303958]
[1764103916280,0.002,2942.4,2942.3,5.0697958]
[1764103916650,0.468,2942.4,2942.3,3.39870169]
[1764103917185,0.5511,2942.4,2942.3,3.39870169]
[1764103918988,0.5511,2942.4,2941.7,10.92377881]
[1764103919186,0.0008,2942.3,2941.7,10.92377881]
[1764103920089,0.0008,2942.3,2941.7,14.32317371]
[1764103920467,0.0008,2942.3,2941.7,14.79837371]
[1764103920658,0.5516,2941.8,2941.7,4.12498901]
[1764103920862,0.5516,2941.8,2941.7,3.3993949]
[1764103921057,0.002,2942.4,2941.7,0.4768]
[1764103921458,0.002,2942.4,2941.8,0.4752]
[1764103921802,0.002,2942.4,2942.3,0.4768]
[1764103923055,0.002,2942.4,2942.2,6.79763442]
[1764103925182,0.002,2942.4,2942.3,0.4768]
[1764103925563,0.002,2942.4,2942.3,0.952]
[1764103926575,0.5473,2942.4,2942.0,6.79807224]
[1764103926895,0.002,2942.4,2942.0,10.92271461]
[1764103929125,0.002,2942.4,2942.0,7.52366635]
[1764103929305,0.4666,2942.4,2942.0,7.52366635]
[1764103929625,0.4666,2942.4,2942.0,10.92271461]
[1764103930226,0.002,2942.4,2942.0,10.92271461]
[1764103930525,0.002,2942.4,2942.3,0.4768]
[1764103931198,0.002,2942.4,2942.3,3.87550169]
[1764103932031,0.002,2942.4,2942.3,5.0762958]
[1764103935224,0.0865,2942.4,2942.3,4.1242958]
[1764103935527,0.0865,2942.4,2942.3,3.39870169]
[1764103937428,0.0865,2942.4,2941.8,10.92343216]
[1764103937622,0.0046,2942.3,2941.8,10.92343216]
[1764103937803,0.0046,2942.3,2941.9,0.4752]
[1764103938925,0.0046,2942.3,2942.1,0.001]
[1764103939240,0.002,2942.4,2942.1,0.001]
[1764103939831,0.002,2942.4,2942.3,0.882304]
[1764103940202,0.002,2942.4,2942.3,1.432704]
[1764103940396,0.002,2942.7,2942.4,0.405504]
[1764103940641,0.002,2942.7,2942.6,6.2761779]
[1764103940806,0.002,2942.7,2942.6,6.1761779]
[1764103941001,0.002,2942.7,2942.6,6.7265779]
[1764103941549,0.002,2943.0,2942.8,6.89624846]
[1764103941705,0.0989,2944.4,2943.5,0.505504]
[1764103942046,0.0989,2944.6,2943.6,0.8509]
[1764103942253,0.0989,2944.6,2943.0,0.1845]
[1764103942254,0.5669,2944.6,2943.3,0.216]
[1764103942536,0.0987,2943.6,2943.0,0.4005]
[1764103942747,0.0987,2943.6,2943.0,0.216]
[1764103943401,0.0987,2943.6,2943.0,0.6664]
[1764103943606,0.0987,2943.6,2943.1,6.7955557]
[1764103944013,0.468,2943.5,2943.1,6.7955557]
[1764103944241,0.0813,2943.2,2943.1,3.39777785]
[1764103945540,0.5455,2943.2,2942.8,3.39812423]
[1764103945714,0.2634,2942.9,2942.7,3.39819355]
[1764103945914,0.1921,2942.8,2942.3,3.39870169]
[1764103946117,0.1849,2942.8,2942.3,3.39870169]
[1764103946514,0.1849,2942.8,2942.3,6.79740338]
[1764103946515,0.6529,2942.8,2942.3,6.79740338]
[1764103946741,0.1849,2942.8,2942.3,6.79740338]
[1764103947037,0.1849,2942.8,2942.3,10.19610507]
[1764103947202,0.468,2943.4,2942.4,0.4504]
[1764103947407,0.468,2943.4,2942.4,1.17599411]
[1764103947604,0.468,2943.4,2942.6,0.72559411]
[1764103947835,0.468,2943.4,2942.5,6.79694136]
[1764103948037,0.0018,2942.6,2942.5,3.39847068]
[1764103948816,0.4698,2942.6,2942.5,3.39847068]
[1764103949023,0.4698,2942.6,2942.2,0.216]
[1764103949024,0.4698,2942.6,2942.2,3.39879854]
[1764103949225,0.0026,2942.3,2942.2,3.39879854]
[1764103949724,0.0026,2942.3,2942.1,0.001]
[1764103949924,0.0796,2942.2,2942.1,0.001]
[1764103951143,0.6505,2942.7,2942.1,0.001]
[1764103951345,0.1838,2942.7,2942.1,0.001]
[1764103951545,0.468,2942.2,2942.1,0.001]
[1764103951734,0.1838,2942.7,2942.1,0.001]
[1764103952252,0.0822,2942.2,2942.1,0.001]
[1764103953262,0.5464,2942.2,2942.1,0.001]
[1764103955352,0.48352441,2942.2,2942.1,0.001]
[1764103956628,3.88234162,2942.2,2942.1,0.001]
[1764103957235,0.48352441,2942.2,2942.1,0.001]
[1764103960185,3.88234162,2942.2,2942.1,0.001]
[1764103960385,0.48352441,2942.2,2942.1,0.001]
[1764103961449,0.64042441,2942.2,2942.1,0.001]
[1764103962490,4.03924162,2942.2,2942.1,0.001]
[1764103962674,1.13109811,2942.1,2942.0,0.001]
[1764103962867,9.46418405,2942.1,2941.9,0.001]
[1764103963068,4.92146759,2942.0,2941.9,0.001]
[1764103963666,2.17941459,2942.0,2941.9,0.001]
[1764103964990,5.57846285,2942.0,2941.9,0.001]
[1764103965367,8.43363473,2942.0,2941.9,0.001]
[1764103965676,8.980367,2941.8,2941.7,0.001]
[1764103965880,13.012802,2941.7,2940.2,0.4504]
[1764103966064,0.405504,2941.5,2940.1,0.1918]
[1764103966260,0.405504,2941.3,2940.1,3.40218499]
[1764103966470,0.31676397,2941.4,2940.1,3.40218499]
[1764103966471,0.405504,2941.1,2940.1,3.40218499]
[1764103966882,0.4051,2941.0,2940.1,3.40218499]
[1764103967085,6.80063926,2940.9,2940.1,0.001]
[1764103967388,6.92323926,2940.9,2940.1,0.001]
[1764103967592,0.1434,2940.2,2940.1,0.001]
[1764103967764,0.3594,2940.2,2940.1,0.001]
[1764103967956,0.7619,2940.2,2940.1,0.001]
[1764103968363,1.25329411,2940.9,2940.1,0.6684]
[1764103968564,0.216,2940.8,2940.1,1.1188]
[1764103968884,0.6211,2940.8,2940.1,0.6684]
[1764103969388,0.72559411,2940.7,2940.2,3.40112917]
[1764103969723,0.72559411,2940.7,2940.1,3.88511416]
[1764103970393,0.216,2940.6,2940.1,3.88511416]
[1764103970609,0.1434,2940.2,2940.1,0.001]
[1764103970965,0.5459,2940.2,2940.1,0.001]
[1764103971799,0.1434,2940.2,2940.1,0.001]
[1764103972705,0.3594,2940.2,2940.1,0.001]
[1764103973108,0.4025,2940.6,2940.1,0.001]
[1764103973410,0.216,2940.5,2940.2,3.40112917]
[1764103973623,3.92802073,2940.9,2940.2,3.40112917]
[1764103973840,0.94159411,2940.8,2940.1,4.08249504]
[1764103973996,1.34669411,2940.8,2940.1,3.40219504]
[1764103974391,0.94159411,2940.8,2940.1,0.001]
[1764103974624,0.4051,2940.2,2940.1,0.001]
[1764103974826,0.216,2940.2,2940.1,3.85324485]
[1764103975899,3.4005529,2940.7,2940.1,3.85324485]
[1764103976100,0.216,2940.6,2940.1,3.85324485]
[1764103976430,0.216,2940.6,2940.1,3.40224485]
[1764103976629,0.6211,2940.6,2940.1,3.40224485]
[1764103977532,0.72559411,2940.8,2940.1,3.40224485]
[1764103977533,0.72559411,2940.8,2940.1,6.9928897]
[1764103977825,0.216,2940.5,2940.2,0.4909]
[1764103978193,0.216,2940.6,2940.4,0.451]
[1764103978439,0.216,2940.7,2940.4,0.451]
[1764103978727,0.216,2940.7,2940.5,0.451]
[1764103979036,0.72559411,2941.3,2940.4,0.4909]
[1764103979037,0.9124897,2941.8,2940.6,0.451]
[1764103979237,0.002,2941.8,2941.4,0.6404]
[1764103979600,0.002,2941.8,2941.4,3.89944161]
[1764103979909,0.002,2941.8,2941.4,4.37474161]
[1764103980305,0.268,2941.5,2940.7,3.40055088]
[1764103980510,0.3416,2941.5,2940.7,6.80110176]
[1764103980709,0.219,2941.5,2940.8,0.4753]
[1764103981719,0.219,2941.5,2940.9,6.80063926]
[1764103982105,0.219,2941.5,2941.0,0.4753]
[1764103982429,0.002,2941.5,2941.0,0.4753]
[1764103982743,0.002,2941.5,2941.1,0.1834]
[1764103983598,0.002,2941.5,2941.2,3.3999728]
[1764103984134,0.002,2941.5,2941.2,7.2752456]
[1764103984436,0.002,2941.5,2941.4,0.4997]
[1764103984601,0.002,2941.5,2941.2,6.7999456]
[1764103984801,0.1434,2941.3,2941.1,3.4000344]
[1764103985044,0.002,2941.5,2940.7,6.80110176]
[1764103985235,0.002,2941.5,2940.7,10.67695264]
[1764103985431,0.002,2941.5,2940.8,0.4753]
[1764103986103,0.002,2941.5,2940.9,6.80063926]
[1764103986304,0.002,2941.5,2940.9,10.20095889]
[1764103986629,0.002,2941.5,2941.0,0.4753]
[1764103986932,0.002,2941.5,2941.1,0.1834]
[1764103987423,0.002,2941.5,2941.1,0.6587]
[1764103987631,0.002,2941.5,2941.4,0.4997]
[1764103988138,0.1454,2941.5,2941.2,3.39996291]
[1764103988431,0.1454,2941.5,2941.2,6.79993571]
[1764103989860,0.004,2941.3,2941.2,3.39996291]
[1764103990083,0.004,2941.3,2940.7,3.40052955]
[1764103990442,0.216,2941.4,2941.2,0.4997]
[1764103991028,0.002,2941.5,2941.3,0.975]
[1764103991233,0.002,2941.5,2941.4,0.4997]
[1764103991741,0.002,2941.5,2941.1,0.1834]
[1764103992074,0.002,2941.5,2941.1,0.6587]
[1764103992235,0.002,2941.5,2941.2,6.7999456]
[1764103992435,0.002,2941.5,2941.2,7.2752456]
[1764103992866,0.002,2941.5,2940.4,0.72559411]
[1764103992867,0.1434,2941.3,2940.4,0.72559411]
[1764103993069,0.004,2941.2,2940.1,0.6657]
[1764103993436,0.72660148,2941.2,2940.1,7.46818213]
[1764103993631,0.31750148,2941.1,2940.1,7.46818213]
[1764103993838,0.31750148,2941.1,2941.0,0.001]
[1764103994141,0.216,2941.1,2941.0,0.001]
[1764103994376,0.6185,2941.1,2941.0,0.001]
[1764103994665,0.93604546,2941.1,2941.0,0.001]
[1764103995152,1.08204546,2941.1,2941.0,0.001]
[1764103995668,0.93604546,2941.1,2941.0,0.001]
[1764103995837,0.93605293,2941.1,2941.0,0.001]
[1764103996371,1.08205293,2941.1,2941.0,0.001]
[1764103996740,0.93605293,2941.1,2941.0,0.001]
[1764103997738,5.93957618,2941.1,2941.0,0.001]
[1764103997931,6.34508018,2941.1,2941.0,0.001]
[1764103998768,7.256461,2941.1,2941.0,0.001]
[1764103999969,21.08727118,2941.1,2941.0,0.001]
[1764104000171,18.37035418,2941.1,2941.0,0.001]
[1764104000374,18.37035418,2941.1,2940.5,0.001]
[1764104000558,5.58876939,2940.6,2940.5,0.001]
[1764104000762,1.04939367,2940.6,2940.5,0.001]
[1764104000949,0.217,2941.1,2940.5,0.4698]
[1764104001153,0.31765038,2941.0,2940.5,0.4698]
[1764104001474,0.217,2940.9,2940.6,0.4664]
[1764104001676,1.64897351,2941.5,2940.9,0.4688]
[1764104001842,1.26662571,2941.4,2940.9,0.4688]
[1764104002039,0.31765695,2941.3,2940.9,0.9352]
[1764104002439,0.217,2941.2,2941.0,0.4664]
[1764104002673,0.217,2941.2,2941.1,4.0555884]
[1764104003037,0.217,2941.2,2941.1,0.6555]
[1764104003273,0.002,2941.5,2941.1,0.6555]
[1764104003445,0.217,2941.4,2941.2,0.4664]
[1764104003663,0.31776438,2941.3,2941.0,3.40016399]
[1764104004180,0.217,2941.3,2941.2,0.4688]
[1764104004982,0.217,2941.3,2941.2,3.8687728]
[1764104005580,0.002,2941.5,2941.2,7.7351456]
[1764104005765,0.219,2941.5,2941.4,0.4688]
[1764104006904,0.002,2941.5,2941.4,3.86854161]
[1764104007065,0.002,2941.5,2941.4,0.9352]
[1764104007267,0.002,2941.5,2941.4,4.33494161]
[1764104008295,0.002,2941.5,2941.4,0.4688]
[1764104008613,0.002,2941.5,2941.4,4.33494161]
[1764104016695,0.002,2941.5,2941.4,5.06053572]
[1764104029442,0.002,2941.5,2941.4,4.59413572]
[1764104029803,0.002,2941.5,2941.4,4.33494161]
[1764104030312,0.002,2941.5,2941.4,3.86854161]
[1764104032739,0.002,2941.5,2938.2,7.90372599]
[1764104032740,0.5479,2941.5,2940.9,3.40031963]
[1764104032938,0.142,2941.0,2940.9,3.40031963]
[1764104033238,0.4039,2941.4,2940.9,6.80063926]
[1764104034637,0.1446,2941.0,2940.8,6.80186058]
[1764104034802,0.0014,2940.9,2940.8,3.40142533]
[1764104035208,0.0014,2940.9,2940.8,0.001]
[1764104035407,1.13043407,2940.9,2940.8,0.001]
[1764104035611,1.13109811,2940.8,2940.5,0.001]
[1764104035802,0.141,2940.6,2940.5,0.001]
[1764104036009,2.83359199,2940.6,2940.5,0.001]
[1764104036330,1.59689313,2940.6,2940.5,0.001]
[1764104036731,5.72315377,2940.6,2940.5,0.001]
[1764104037120,6.12865777,2940.6,2940.5,0.001]
[1764104037512,1.13109811,2940.5,2940.2,0.001]
[1764104037713,0.004,2940.3,2940.2,0.001]
[1764104037909,1.86387956,2940.3,2940.2,0.001]
[1764104038436,0.94253007,2940.3,2940.2,0.001]
[1764104038742,5.06913768,2940.3,2940.2,0.001]
[1764104040634,4.75070761,2940.3,2940.2,0.001]
[1764104046021,15.99332961,2940.3,2940.2,0.001]
[1764104046224,5.15621161,2940.3,2940.2,0.001]
[1764104046538,4.75070761,2940.3,2940.2,0.001]
[1764104048534,0.72959411,2940.3,2940.2,0.001]
[1764104048750,4.75070761,2940.3,2940.2,0.001]
[1764104049367,4.34660761,2940.3,2940.2,0.001]
[1764104050065,4.75070761,2940.3,2940.2,0.001]
[1764104050270,6.37,2940.6,2940.2,0.001]
[1764104050430,0.72559411,2940.5,2940.2,0.001]
[1764104050635,0.4041,2940.3,2940.2,0.001]
[1764104051059,0.953004,2940.3,2940.2,0.001]
[1764104051256,0.809604,2940.3,2940.2,0.001]
[1764104051769,4.93621161,2940.3,2940.2,0.001]
[1764104052066,5.07961161,2940.3,2940.2,0.001]
[1764104052970,5.29561161,2940.3,2940.2,0.001]
[1764104053563,5.07961161,2940.3,2940.2,0.001]
[1764104053777,5.29561161,2940.3,2940.2,0.001]
[1764104056379,1.34569411,2940.3,2940.2,0.001]
[1764104057378,4.89010761,2940.3,2940.2,0.001]
[1764104057784,5.61186713,2940.3,2940.2,0.001]
[1764104058385,6.34114517,2940.3,2940.2,0.001]
[1764104060085,5.98174517,2940.3,2940.2,0.001]
[1764104060385,6.34114517,2940.3,2940.2,0.001]
[1764104062354,13.62229814,2940.3,2940.2,0.001]
[1764104063150,7.50249811,2940.2,2939.9,0.001]
[1764104063375,20.40749767,2940.1,2939.9,0.001]
[1764104063700,16.12524865,2940.0,2939.9,0.001]
[1764104063897,19.41059787,2940.0,2939.9,0.001]
[1764104064072,18.76174887,2940.0,2939.9,0.001]
[1764104064276,14.17714921,2940.0,2939.9,0.001]
[1764104064594,6.20209221,2940.0,2939.9,0.001]
[1764104064996,9.63470821,2940.0,2939.9,0.001]
[1764104066194,21.57063875,2940.0,2939.6,0.001]
[1764104066492,12.74566767,2939.9,2939.6,0.001]
[1764104066679,19.11566767,2939.9,2939.6,0.001]
[1764104066888,23.11238213,2939.9,2939.6,0.001]
[1764104067098,23.11238213,2939.9,2939.0,0.001]
[1764104067099,26.02664211,2939.4,2939.0,0.001]
[1764104067425,24.40157951,2939.4,2939.0,0.001]
[1764104067569,16.44590451,2939.4,2939.0,0.001]
[1764104067894,16.58230108,2939.4,2939.0,0.001]
[1764104068099,16.36630108,2939.4,2939.0,0.001]
[1764104068302,9.00959908,2939.4,2939.0,0.001]
[1764104068795,10.22276408,2939.4,2939.0,0.001]
[1764104068974,10.43876408,2939.4,2939.0,0.001]
[1764104069179,10.64256708,2939.4,2939.0,0.001]
[1764104069800,10.35942208,2939.4,2939.0,0.001]
[1764104070304,24.79489008,2939.4,2939.0,0.001]
[1764104070598,4.089504,2939.0,2938.7,0.001]
[1764104070798,27.52461111,2938.8,2938.7,0.001]
[1764104070988,22.26883867,2938.8,2938.7,0.001]
[1764104071188,32.7466322,2938.8,2938.7,0.001]
[1764104071507,30.08886967,2938.8,2938.7,0.001]
[1764104071812,15.28082109,2938.8,2938.7,0.001]
[1764104072016,15.06482109,2938.8,2938.7,0.001]
[1764104072175,6.52508109,2938.8,2938.7,0.001]
[1764104072376,22.65485133,2938.8,2938.7,0.001]
[1764104072998,21.781392,2938.8,2938.7,0.001]
[1764104073173,23.417892,2938.8,2938.7,0.001]
[1764104073786,24.44100933,2938.8,2938.7,0.001]
[1764104074185,9.37625933,2938.8,2938.7,0.001]
[1764104074369,25.99201733,2938.8,2938.7,0.001]
[1764104075185,21.20926533,2938.8,2938.7,0.001]
[1764104075375,28.80998142,2938.8,2938.7,0.001]
[1764104076206,35.17998142,2938.8,2938.7,0.001]
[1764104076509,41.40305742,2938.8,2938.7,0.001]
[1764104076869,27.90152042,2938.8,2938.7,0.001]
[1764104077074,26.27594842,2938.8,2938.7,0.001]
[1764104077282,29.80085316,2938.8,2938.7,0.001]
[1764104077503,28.22184016,2938.8,2938.7,0.001]
[1764104077704,27.42677916,2938.8,2938.7,0.001]
[1764104077903,14.54917316,2938.8,2938.7,0.001]
[1764104078209,12.67200079,2938.8,2938.7,0.4803]
[1764104078413,13.07750479,2938.8,2938.7,0.001]
[1764104079122,7.41553356,2938.8,2938.7,0.9348]
[1764104079423,6.90225552,2938.8,2938.7,0.9348]
[1764104079625,7.62784963,2938.8,2938.7,0.9348]
[1764104079823,6.68625552,2938.8,2938.7,0.9348]
[1764104079993,6.90269101,2938.8,2938.7,0.9348]
[1764104080334,0.004,2938.5,2936.9,0.185]
[1764104080534,0.004,2938.5,2936.8,0.001]
[1764104080535,8.28839,2937.7,2936.8,0.001]
[1764104080823,1.13109811,2937.4,2936.8,0.001]
[1764104081028,1.04640868,2937.3,2936.8,0.001]
[1764104081197,0.53269101,2937.2,2936.8,0.001]
[1764104081392,0.31669101,2937.1,2936.8,0.001]
[1764104081597,0.216,2937.0,2936.8,0.4555]
[1764104081815,0.9121237,2937.7,2936.8,0.4555]
[1764104081816,0.216,2936.9,2936.8,0.4555]
[1764104081990,0.1825,2937.6,2936.9,0.4793]
[1764104081991,0.216,2937.0,2936.9,0.4793]
[1764104082193,0.216,2937.0,2936.8,0.4555]
[1764104082453,0.216,2937.1,2936.9,0.4793]
[1764104082609,0.216,2937.1,2936.8,3.86049383]
[1764104082808,0.216,2937.1,2937.0,0.4793]
[1764104083319,0.9121237,2938.0,2937.0,0.9338]
[1764104083616,4.12927934,2938.0,2937.9,0.4793]
[1764104083820,5.39105242,2938.0,2937.9,0.4793]
[1764104084204,0.72559411,2937.9,2937.6,0.4545]
[1764104084401,0.31648866,2937.8,2937.6,0.4545]
[1764104084632,0.31648866,2937.8,2937.7,0.4793]
[1764104085732,0.31648866,2937.8,2937.7,0.9338]
[1764104085898,0.216,2937.8,2937.7,0.9338]
[1764104086530,4.44613956,2937.8,2937.7,0.9338]
[1764104086699,1.25823188,2937.8,2937.7,0.9338]
[1764104087138,4.66213956,2937.8,2937.7,0.9338]
[1764104087734,4.66213956,2937.8,2937.3,0.4545]
[1764104087921,4.34550179,2937.8,2937.3,0.4545]
[1764104088241,4.34550179,2937.8,2937.7,0.4793]
[1764104088405,4.66232883,2937.8,2937.7,0.4793]
[1764104089430,1.25842115,2937.8,2937.7,0.9338]
[1764104089627,0.53282704,2937.8,2937.7,0.9338]
[1764104089808,0.31682704,2937.8,2937.7,0.9338]
[1764104090008,0.53282704,2937.8,2937.7,0.9338]
[1764104090426,0.72559411,2938.1,2937.7,0.9338]
[1764104090743,0.72559411,2938.1,2936.8,0.001]
[1764104090744,0.31706362,2938.0,2937.5,6.80845843]
[1764104091044,6.37,2938.2,2937.9,0.6639]
[1764104091253,0.31723486,2938.1,2937.9,0.1877]
[1764104091433,0.9120531,2938.8,2938.0,0.4622]
[1764104091739,1.26425378,2938.7,2938.0,0.4622]
[1764104091906,0.31717502,2938.6,2938.0,0.4622]
[1764104092309,3.7202412,2938.6,2938.0,3.86587176]
[1764104092527,1.04825378,2938.5,2938.0,3.86587176]
[1764104092745,3.40306618,2938.6,2938.1,0.4622]
[1764104093041,0.31740842,2938.5,2938.1,0.4622]
[1764104093241,3.61887113,2938.7,2938.6,0.4762]
[1764104093444,5.17796782,2938.7,2938.6,0.4762]
[1764104093747,1.99109669,2938.7,2938.6,0.9384]
[1764104093950,5.3939619,2938.7,2938.6,0.9384]
[1764104094147,1.99109669,2938.7,2938.6,0.9384]
[1764104094833,0.53358946,2938.7,2938.6,0.9384]
[1764104095827,1.26615014,2938.7,2938.6,0.9384]
[1764104096039,4.66901535,2938.7,2938.6,0.9384]
[1764104096252,0.53358946,2938.7,2938.6,0.4762]
[1764104096548,0.53558946,2938.7,2938.6,0.9384]
[1764104096753,1.26842122,2938.7,2938.6,0.9384]
[1764104099937,1.26842122,2938.7,2937.9,0.1877]
[1764104099938,4.67128643,2938.7,2937.9,0.1877]
[1764104100134,0.31758946,2938.6,2938.2,0.4777]
[1764104100333,0.216,2938.5,2938.3,0.4777]
[1764104100657,0.002,2938.7,2938.5,0.4854]
[1764104100952,0.002,2938.7,2938.6,0.9631]
[1764104101366,0.002,2939.0,2938.6,0.9631]
[1764104101562,0.002,2939.0,2938.9,0.4854]
[1764104101861,0.002,2939.0,2938.9,0.9631]
[1764104102733,0.002,2939.0,2938.9,4.36573363]
[1764104103363,0.002,2939.0,2938.9,0.9631]
[1764104103664,0.002,2939.0,2938.9,4.36573363]
[1764104104457,0.002,2939.3,2938.9,11.17100089]
[1764104104763,0.002,2939.3,2939.2,0.6747]
[1764104105363,0.002,2939.3,2939.2,1.1524]
[1764104106571,0.002,2939.3,2939.2,4.55468633]
[1764104107871,0.002,2939.3,2938.7,0.1893]
[1764104107872,0.3604,2939.3,2938.7,0.1893]
[1764104108034,0.002,2939.3,2938.7,0.1893]
[1764104108238,0.216,2939.2,2938.7,0.667]
[1764104108868,3.61833239,2939.2,2938.7,0.1893]
[1764104109076,3.61833239,2939.2,2938.8,0.4777]
[1764104109377,0.216,2939.2,2938.8,0.4777]
[1764104109537,3.61830678,2939.2,2938.8,0.4777]
[1764104109736,3.40425944,2939.3,2939.1,0.4854]
[1764104109982,0.002,2939.3,2939.2,0.4854]
[1764104110638,0.002,2939.3,2939.2,0.9631]
[1764104111954,0.002,2939.3,2939.2,0.4854]
[1764104113367,0.002,2939.3,2939.2,0.9631]
[1764104115371,0.002,2939.3,2939.2,4.36538633]
[1764104116170,0.002,2939.3,2939.2,0.9631]
[1764104116389,0.002,2939.3,2939.2,4.36538633]
[1764104116700,0.002,2939.3,2939.2,0.9631]
[1764104117000,0.002,2939.3,2939.2,4.36538633]
[1764104119599,0.002,2939.3,2939.2,0.4854]
[1764104119765,0.3604,2939.3,2939.0,0.001]
[1764104120286,0.218,2939.3,2939.0,3.88381374]
[1764104120656,0.218,2939.3,2939.0,0.4813]
[1764104120895,0.218,2939.3,2939.0,3.88379796]
[1764104121096,0.218,2939.3,2939.2,0.4886]
[1764104121789,0.218,2939.3,2939.0,0.001]
[1764104122512,3.62017445,2939.3,2939.0,0.001]
[1764104122674,0.218,2939.3,2939.0,0.001]